[Event "Bangabandhu Premier Div League 2023-24"]
[Site "Dhaka"]
[Date "2024.02.11"]
[Round "11.2"]
[White "Sanket Chakravarty"]
[Black "Kushagra Mohan"]
[Result "1/2-1/2"]
[ECO "D32"]
[WhiteElo "2361"]
[BlackElo "2374"]
[Annotator "TA"]
[PlyCount "34"]
[EventDate "2024.02.01"]
[EventCountry "BAN"]
[SourceTitle "playchess.com"]
[Source "ChessBase"]
[SourceQuality "1"]
[TimeControl "40/5400+30:1800+30"]

{[%evp 19,34,0,0,-15,0,0,0,-8,-6,-28,0,-52,0,-9,4,-47,0]} 1. c4 {[%emt 0:00:02]} Nf6 {[%emt 0:04:00]} 2. Nf3 {[%emt 0:00:30]} c5 {[%emt 0:00:30]} 3. Nc3 {[%emt 0:00:30]} Nc6 {[%emt 0:00:30]} 4. e3 {[%emt 0:00:30]} e6 {[%emt 0:00:30]} 5. d4 {[%emt 0:00:30]} d5 {[%emt 0:00:30]} 6. cxd5 {[%emt 0:00:30]} exd5 {[%emt 0:00:30]} 7. Bb5 {[%emt 0:00:30]} a6 8. Bxc6+ {[%emt 0:00:30]} bxc6 {[%emt 0:01:00]} 9. dxc5 {[%emt 0:00:30]} Bxc5 {[%emt 0:00:30]} 10. O-O {[%emt 0:02:49]} O-O {[%emt 0:00:56]} 11. b3 {[%emt 0:00:10]} Bd6 {[%emt 0:00:55]} 12. Bb2 {[%emt 0:00:12]} c5 {[%emt 0:05:09]} 13. Rc1 {[%emt 0:06:54][%cal Ob2a3] The position is equal.} Bb7 {[%emt 0:00:49]} 14. Na4 {[%emt 0:02:28]} Ne4 {[%emt 1:21:41]} 15. Nc3 {[%emt 0:00:02]} (15. Be5 $11) 15... Nf6 {[%emt 0:00:00]} 16. Na4 {[%emt 0:00:05]} Ne4 {[%emt 0:01:00]} 17. Nc3 {[%emt 0:00:05]} ({Better is} 17. Be5 $11) 17... Nf6 {[%emt 0:00:00] Not much happened in this game.   Weighted Error Value: White=0.21 (precise) /Black=0.16 (very precise) .  Mistake:       	White=2     	Black=1      Inaccurate:     	---       	Black=2      OK:         	White=4     	Black=1} (17... Nxc3 $15 18. Rxc3 a5) 1/2-1/2

[Event "Bangabandhu Premier Div League 2023-24"]
[Site "Dhaka"]
[Date "2024.02.11"]
[Round "11.3"]
[White "Sajidul, Haque"]
[Black "Arpan Das"]
[Result "0-1"]
[ECO "D02"]
[WhiteElo "1922"]
[BlackElo "2367"]
[Annotator "TA"]
[PlyCount "66"]
[EventDate "2024.02.01"]
[EventCountry "BAN"]
[SourceTitle "playchess.com"]
[Source "ChessBase"]
[SourceQuality "1"]
[TimeControl "40/5400+30:1800+30"]

{[%evp 11,66,-1,12,12,31,22,13,11,9,14,14,-16,-29,-44,-25,-68,-28,-33,0,0,0,-125,-137,-189,-175,-178,-170,-212,-204,-226,-212,-193,-206,-200,-201,-206,-179,-202,-109,-238,-270,-527,-522,-702,-690,-865,-431,-1469,-1260,-29994,-29995,-29995,-29996,-29996,-29997,-29997,-29998]} 1. d4 {[%emt 0:00:30]} d5 {[%emt 0:00:30]} 2. Bf4 {[%emt 0:00:30]} e6 {[%emt 0:00:30]} 3. Nf3 {[%emt 0:00:30]} Nf6 {[%emt 0:00:30]} 4. e3 {[%emt 0:00:30]} c5 {[%emt 0:00:30]} 5. Nbd2 {[%emt 0:00:30]} Nc6 {[%emt 0:00:30]} 6. c3 {[%emt 0:00:30]} cxd4 {[%emt 0:00:30]} 7. exd4 {[%emt 0:00:30]} Nh5 {[%emt 0:00:30]} 8. Be3 {[%emt 0:00:30]} Bd6 {[%emt 0:00:30] [#]} 9. Ne5 $1 {[%emt 0:04:24] The position is equal.} g6 {[%emt 0:00:55]} 10. Ndf3 {[%emt 0:01:48]} f6 {[%emt 0:04:16]} 11. Nxc6 {[%emt 0:04:00]} bxc6 {[%emt 0:00:02]} 12. Bh6 {[%emt 0:03:25]} Qc7 {[%emt 0:02:04]} 13. Be2 {[%emt 0:03:31]} Ng7 {[%emt 0:13:30]} 14. c4 {[%emt 0:07:45]} Nf5 {[%emt 0:01:43]} 15. Bd2 {[%emt 0:00:25]} O-O {[%emt 0:01:12]} 16. Qc1 {[%emt 0:03:01]} (16. Bc3 $11) 16... Qe7 $17 {[%emt 0:19:55] Black is more active.} 17. g4 {[%emt 0:10:54]} (17. cxd5 $17 cxd5 18. g4) 17... Ng7 $19 {[%emt 0:01:42]} 18. c5 {[%emt 0:02:49]} Bc7 {[%emt 0:00:50]} 19. g5 {[%emt 0:02:24]} e5 {[%emt 0:05:28] And now ...exd4 would win.} 20. gxf6 {[%emt 0:00:21]} Qxf6 {[%emt 0:00:02]} 21. dxe5 {[%emt 0:01:40]} Bxe5 {[%emt 0:00:06]} 22. Nxe5 {[%emt 0:00:22]} Qxe5 {[%emt 0:01:09]} 23. Qc3 {[%emt 0:02:53] White is weak on the light squares} d4 $40 {[%emt 0:04:09][%mdl 128] Black is out for blood.} 24. Qg3 {[%emt 0:00:38]} Qxc5 {[%emt 0:07:43]} (24... Qe4 $19 25. f3 Qc2) 25. Qb3+ {[%emt 0:04:57] White does not recover from this.} (25. O-O $17 {keeps fighting.}) 25... Be6 {[%emt 0:00:21]} 26. Bb4 $2 {[%emt 0:02:18]} (26. Qd3 {was worth a try.}) 26... Qf5 {[%emt 0:03:09]} 27. Qg3 {[%emt 0:00:16]} c5 {[%emt 0:01:40]} 28. Ba3 {[%emt 0:01:31]} Bd5 {[%emt 0:00:44]} (28... Nh5 $142 29. Bd3 Nxg3 30. Bxf5 Nxf5 (30... Nxh1 31. Bxe6+ Kg7 32. Bxc5 $19) 31. Bxc5 Rfe8) 29. Rf1 {[%emt 0:02:04]} (29. O-O-O $142 Bxh1 (29... Bxa2 $2 30. Bd3 $19) 30. Rxh1) 29... Rae8 {[%emt 0:00:24]} 30. Kd2 {[%emt 0:01:35] [#]} Rxe2+ $1 {[%emt 0:00:18][%mdl 512] Black mates.} 31. Kxe2 {[%emt 0:00:41]} Qc2+ {[%emt 0:00:17]} 32. Ke1 {[%emt 0:00:02]} Re8+ {[%emt 0:00:05]} 33. Qe3 {[%emt 0:00:38]} dxe3 {[%emt 0:00:04] Weighted Error Value: White=1.06/Black=0.43.  Mistake:       	White=4     	Black=1      Inaccurate:     	White=4     	Black=2      OK:         	White=4     	Black=9      Best:        	White=2     	Black=3} 0-1

[Event "Bangabandhu Premier Div League 2023-24"]
[Site "Dhaka"]
[Date "2024.02.11"]
[Round "11.4"]
[White "Uddin, Saif"]
[Black "Manon, Reja Neer"]
[Result "0-1"]
[ECO "A48"]
[WhiteElo "1938"]
[BlackElo "2169"]
[Annotator "NA RC"]
[PlyCount "40"]
[EventDate "2024.02.01"]
[EventCountry "BAN"]
[SourceTitle "playchess.com"]
[Source "ChessBase"]
[SourceQuality "1"]
[TimeControl "40/5400+30:1800+30"]

1. Nf3 {[%emt 0:00:30]} Nf6 {[%emt 0:00:30]} 2. b3 {[%emt 0:00:30]} g6 {[%emt 0:00:30]} 3. Bb2 {[%emt 0:00:30]} Bg7 {[%emt 0:00:30]} 4. e3 {[%emt 0:00:30]} d6 {[%emt 0:00:30]} 5. d4 {[%emt 0:00:30]} O-O {[%emt 1:31:00]} 6. Be2 e5 {[%emt 0:00:00]} 7. dxe5 {[%emt 0:03:12]} Nfd7 {[%emt 0:00:00]} 8. Nbd2 {[%emt 0:03:49]} dxe5 {[%emt 0:00:00]} 9. e4 {[%emt 0:02:05]} Qe7 {[%emt 0:00:00]} 10. O-O {[%emt 0:02:23]} Rd8 {[%emt 0:00:00]} 11. Qe1 {[%emt 0:01:52]} Nc6 {[%emt 0:00:00]} 12. a4 {[%emt 0:02:30]} Nf8 {[%emt 0:00:00]} 13. Nc4 {[%emt 0:02:45]} Ne6 {[%emt 0:00:00]} 14. Ne3 {[%emt 1:16:24]} Nf4 {[%emt 0:04:30]} 15. Bc4 {[%emt 0:00:30]} Be6 {[%emt 0:00:30]} 16. Bxe6 {[%emt 0:00:30]} Qxe6 {[%emt 0:00:30]} 17. g3 {[%emt 0:00:30]} Nd4 {[%emt 0:00:00]} 18. Nd2 {[%emt 0:00:30]} Qh3 {[%emt 0:01:00]} 19. gxf4 {[%emt 0:00:30]} exf4 {[%emt 0:00:30]} 20. Nec4 {[%emt 0:00:30]} f3 {[%emt 0:00:00]} 0-1

[Event "Bangabandhu Premier Div League 2023-24"]
[Site "Dhaka"]
[Date "2024.02.11"]
[Round "11.4"]
[White "Avik, Sarker"]
[Black "Suvradeepta, Das"]
[Result "1/2-1/2"]
[ECO "A45"]
[WhiteElo "1914"]
[BlackElo "2141"]
[Annotator "NA RC"]
[PlyCount "87"]
[EventDate "2024.02.01"]
[EventCountry "BAN"]
[SourceTitle "playchess.com"]
[Source "ChessBase"]
[SourceQuality "1"]
[TimeControl "40/5400+30:1800+30"]

1. d4 {[%emt 0:00:04]} Nf6 {[%emt 0:04:02]} 2. Bf4 {[%emt 0:00:30]} c5 {[%emt 0:00:30]} 3. e3 {[%emt 0:00:30]} Qb6 {[%emt 0:00:30]} 4. Nc3 {[%emt 0:00:30]} cxd4 {[%emt 0:00:30]} 5. Qxd4 {[%emt 0:00:30]} Qa5 {[%emt 0:00:30]} 6. b4 {[%emt 0:05:13]} Qb6 {[%emt 0:01:14]} 7. Qxb6 {[%emt 0:12:19]} axb6 {[%emt 0:00:04]} 8. Bxb8 {[%emt 0:00:45]} Rxb8 {[%emt 0:00:02]} 9. Na4 {[%emt 0:00:25]} Nd5 {[%emt 0:07:30]} 10. a3 {[%emt 0:01:28]} Kd8 {[%emt 0:00:09]} 11. e4 {[%emt 0:04:03]} Nf6 {[%emt 0:00:06]} 12. e5 {[%emt 0:03:14]} Nd5 {[%emt 0:00:25]} 13. c4 {[%emt 0:05:30]} Ra8 {[%emt 0:02:32]} 14. cxd5 {[%emt 1:02:29]} Rxa4 {[%emt 0:00:05]} 15. Bb5 {[%emt 0:00:00]} Ra8 {[%emt 0:00:06]} 16. Nf3 {[%emt 0:00:00]} f6 {[%emt 0:07:14]} 17. O-O {[%emt 0:00:00]} g6 {[%emt 0:02:21]} 18. e6 {[%emt 0:00:00]} Bh6 {[%emt 0:08:24]} 19. Rfe1 {[%emt 0:00:00]} Bf4 {[%emt 0:00:30]} 20. a4 {[%emt 0:00:00]} Bd6 {[%emt 0:01:43]} 21. Rab1 {[%emt 0:00:00]} dxe6 {[%emt 0:07:02]} 22. dxe6 {[%emt 0:00:00]} Kc7 {[%emt 0:00:48]} 23. Rbc1+ {[%emt 0:00:00]} Kb8 {[%emt 0:00:17]} 24. Rc4 {[%emt 0:00:00]} Rd8 {[%emt 0:04:38]} 25. g3 {[%emt 0:00:00]} Bc7 {[%emt 0:02:01]} 26. Kg2 {[%emt 0:00:00]} Bd6 {[%emt 0:01:32]} 27. Rh4 {[%emt 0:00:00]} Rg8 {[%emt 0:05:49]} 28. Rd4 {[%emt 0:00:00]} Bc7 {[%emt 0:01:25]} 29. Rc4 {[%emt 0:01:48]} Bd6 {[%emt 0:00:51]} 30. Nd2 {[%emt 0:01:08]} g5 {[%emt 0:03:08]} 31. Kf1 {[%emt 0:02:54]} g4 {[%emt 0:00:34]} 32. f4 {[%emt 0:00:27]} gxf3 {[%emt 0:05:22]} 33. Nxf3 {[%emt 0:03:13]} h5 {[%emt 0:00:02]} 34. Rd4 {[%emt 0:00:00]} Bc7 {[%emt 0:00:09]} 35. Rh4 {[%emt 0:00:00]} Rg4 {[%emt 0:08:28]} 36. Rxh5 {[%emt 0:00:00]} Rxb4 {[%emt 0:00:02]} 37. Rh8 {[%emt 0:00:30]} Bd6 {[%emt 0:00:05]} 38. Bd7 {[%emt 0:00:36]} Kc7 {[%emt 0:00:01]} 39. Rc1+ {[%emt 0:00:28]} Bc5 {[%emt 0:00:01]} 40. a5 {[%emt 0:00:29]} Bxd7 {[%emt 0:02:09]} 41. Rxa8 {[%emt 0:04:02]} Bxe6 {[%emt 0:01:44]} 42. axb6+ {[%emt 0:02:30]} Kxb6 {[%emt 0:00:08]} 43. Nd2 {[%emt 0:01:02]} Kc6 {[%emt 0:17:05]} 44. h4 {[%emt 0:05:26]} 1/2-1/2

[Event "Bangabandhu Premier Div League 2023-24"]
[Site "Dhaka"]
[Date "2024.02.11"]
[Round "11.5"]
[White "Alekhya Mukhopadhyay"]
[Black "Hossain, Enamul"]
[Result "1-0"]
[ECO "A65"]
[WhiteElo "2184"]
[BlackElo "2372"]
[Annotator "RC"]
[PlyCount "195"]
[EventDate "2024.02.01"]
[EventCountry "BAN"]
[SourceTitle "playchess.com"]
[Source "ChessBase"]
[SourceQuality "1"]
[TimeControl "40/5400+30:1800+30"]

1. d4 {[%emt 0:00:30]} Nf6 {[%emt 0:00:30]} 2. Bg5 {[%emt 0:00:30]} c5 {[%emt 0:00:30]} 3. d5 {[%emt 0:00:30]} Ne4 {[%emt 0:00:30]} 4. Bc1 {[%emt 0:00:30]} d6 {[%emt 0:00:30]} 5. f3 {[%emt 1:31:00]} Nf6 6. c4 {[%emt 0:00:00]} g6 {[%emt 0:06:25]} 7. Nc3 {[%emt 0:00:00]} Bg7 {[%emt 0:00:08]} 8. e4 {[%emt 0:00:00]} O-O {[%emt 0:04:01]} 9. Nge2 {[%emt 0:00:00]} e6 {[%emt 0:00:23]} 10. Bg5 {[%emt 0:00:00]} h6 {[%emt 0:03:12]} 11. Be3 {[%emt 0:00:00]} exd5 {[%emt 0:00:39]} 12. cxd5 {[%emt 0:00:00]} Nbd7 {[%emt 0:01:48]} 13. Qd2 {[%emt 0:00:00]} Ne5 {[%emt 0:01:06]} 14. Ng3 {[%emt 0:00:00]} h5 {[%emt 0:00:16]} 15. Be2 {[%emt 0:00:00]} h4 {[%emt 1:18:02]} 16. Nf1 {[%emt 0:05:30]} a6 {[%emt 0:00:00]} 17. a4 {[%emt 0:00:30]} Nh7 {[%emt 0:00:00]} 18. h3 {[%emt 0:00:00]} f5 {[%emt 0:01:30]} 19. Nh2 {[%emt 0:01:00]} Qf6 {[%emt 0:00:30]} 20. f4 {[%emt 0:00:30]} Nf7 {[%emt 0:00:00]} 21. Bd3 {[%emt 0:00:30]} Re8 {[%emt 0:01:00]} 22. exf5 {[%emt 0:00:30]} Bxf5 {[%emt 0:00:00]} 23. O-O-O {[%emt 0:00:00]} b5 {[%emt 0:00:00]} 24. Ng4 {[%emt 0:01:00]} Qd8 {[%emt 0:01:30]} 25. Rhe1 {[%emt 0:00:00]} Qa5 {[%emt 0:00:30]} 26. Qc2 {[%emt 0:00:00]} bxa4 {[%emt 0:00:30]} 27. Nb1 {[%emt 0:01:30]} Reb8 {[%emt 0:00:30]} 28. Bd2 {[%emt 0:00:30]} Bxd3 {[%emt 0:00:00]} 29. Qxd3 {[%emt 0:00:00]} Qb6 {[%emt 0:00:00]} 30. Bc3 {[%emt 0:01:00]} Bxc3 {[%emt 0:00:00]} 31. Qxc3 {[%emt 0:00:30]} Qb4 {[%emt 0:00:00]} 32. Re6 {[%emt 0:00:00]} Qxc3+ {[%emt 0:00:00]} 33. Nxc3 {[%emt 0:00:00]} Nf8 {[%emt 0:00:00]} 34. Re4 {[%emt 0:01:30]} Rb4 {[%emt 0:00:00]} 35. Rxb4 {[%emt 0:00:00]} cxb4 {[%emt 0:00:00]} 36. Nxa4 {[%emt 0:00:00]} Rc8+ {[%emt 0:00:00]} 37. Kd2 {[%emt 0:00:00]} Rc4 {[%emt 0:00:00]} 38. Ke3 {[%emt 0:00:00]} a5 {[%emt 0:00:32]} 39. Rd4 {[%emt 0:00:00]} Rc1 {[%emt 0:00:51]} 40. Nb6 {[%emt 0:01:34]} Kg7 {[%emt 0:02:49]} 41. b3 {[%emt 0:02:17]} Rb1 {[%emt 0:02:59]} 42. Rd3 {[%emt 0:01:44]} Rb2 {[%emt 0:00:30]} 43. Kf3 {[%emt 0:28:55]} Nh7 {[%emt 0:30:19]} 44. Ne3 {[%emt 0:00:00]} Nf6 {[%emt 0:00:00]} 45. Nec4 {[%emt 0:00:00]} Rb1 {[%emt 0:00:00]} 46. Nc8 {[%emt 0:01:30]} Rf1+ {[%emt 0:00:00]} 47. Ke3 {[%emt 0:00:00]} Re1+ {[%emt 0:00:00]} 48. Kf2 {[%emt 0:00:00]} Re4 {[%emt 0:00:00]} 49. Kf3 {[%emt 0:00:00]} g5 {[%emt 0:00:00]} 50. fxg5 {[%emt 0:00:00]} Nxg5+ {[%emt 0:00:00]} 51. Kf2 {[%emt 0:00:00]} Rf4+ {[%emt 0:00:00]} 52. Ke3 {[%emt 0:03:00]} Re4+ {[%emt 0:00:00]} 53. Kd2 {[%emt 0:00:30]} Re8 {[%emt 0:05:00]} 54. N8xd6 {[%emt 0:00:00]} Nge4+ {[%emt 0:00:00]} 55. Nxe4 {[%emt 0:00:00]} Nxe4+ {[%emt 0:00:00]} 56. Kc2 {[%emt 0:01:30]} Nc5 {[%emt 0:01:30]} 57. Rd2 {[%emt 0:00:30]} a4 {[%emt 0:00:00]} 58. bxa4 {[%emt 0:00:30]} Re4 {[%emt 0:00:00]} 59. Nb6 {[%emt 0:00:00]} b3+ {[%emt 0:00:00]} 60. Kb2 {[%emt 0:00:00]} Rb4 {[%emt 0:00:00]} 61. a5 {[%emt 0:00:00]} Rb5 {[%emt 0:02:30]} 62. Nc4 {[%emt 0:00:00]} Na4+ {[%emt 0:00:00]} 63. Ka3 {[%emt 0:00:07]} b2 {[%emt 0:01:00]} 64. Nxb2 {[%emt 0:00:40]} Nxb2 {[%emt 0:00:00]} 65. Rd4 {[%emt 0:01:26]} Kf6 {[%emt 0:01:00]} 66. d6 {[%emt 0:00:26]} Nc4+ {[%emt 0:00:00]} 67. Rxc4 {[%emt 0:00:05]} Rxa5+ {[%emt 0:00:00]} 68. Kb4 {[%emt 0:02:16]} Rd5 {[%emt 0:00:31]} 69. Rxh4 {[%emt 0:00:00]} Kg5 {[%emt 0:00:01]} 70. Kc4 {[%emt 0:00:00]} Rxd6 {[%emt 0:00:02]} 71. Rd4 {[%emt 0:00:10]} Ra6 {[%emt 0:02:26]} 72. Rg4+ {[%emt 0:00:51]} Kh5 {[%emt 0:00:00]} 73. Kd3 {[%emt 0:00:10]} Re6 {[%emt 0:01:00]} 74. Kd2 {[%emt 0:01:07]} Re8 {[%emt 0:00:00]} 75. Rg3 {[%emt 0:00:04]} Kh4 {[%emt 0:00:00]} 76. Rg4+ {[%emt 0:00:13]} Kh5 {[%emt 0:00:00]} 77. g3 {[%emt 0:00:23]} Ra8 {[%emt 0:00:00]} 78. Re4 {[%emt 0:00:33]} Ra3 {[%emt 0:00:00]} 79. Re5+ {[%emt 0:00:13]} Kg6 {[%emt 0:00:00]} 80. Re3 {[%emt 0:00:26]} Ra2+ {[%emt 0:00:00]} 81. Ke1 {[%emt 0:01:25]} Rh2 {[%emt 0:00:00]} 82. h4 {[%emt 0:00:16]} Kf5 {[%emt 0:00:00]} 83. Re2 {[%emt 0:01:39]} Rh1+ {[%emt 0:01:48]} 84. Kf2 {[%emt 0:00:00]} Ra1 {[%emt 0:01:07]} 85. Kg2 {[%emt 0:00:00]} Kg4 {[%emt 0:00:18]} 86. Re4+ {[%emt 0:00:00]} Kh5 {[%emt 0:00:10]} 87. Re5+ {[%emt 0:00:00]} Kg6 {[%emt 0:00:16]} 88. Kh3 {[%emt 0:00:00]} Ra4 {[%emt 0:03:51]} 89. Rb5 {[%emt 0:00:00]} Rc4 {[%emt 0:00:00]} 90. Rb6+ {[%emt 0:00:28]} Kg7 {[%emt 0:00:00]} 91. h5 {[%emt 0:00:04]} Rd4 {[%emt 0:00:00]} 92. g4 {[%emt 0:00:04]} Rc4 {[%emt 0:00:00]} 93. Kh4 {[%emt 0:00:03]} Ra4 {[%emt 0:00:00]} 94. h6+ {[%emt 0:00:18]} Kh7 {[%emt 0:00:00]} 95. Kh5 {[%emt 0:00:04]} Ra1 {[%emt 0:00:00]} 96. Rb7+ {[%emt 0:00:04]} Kg8 {[%emt 0:00:00]} 97. g5 {[%emt 0:00:04]} Ra6 {[%emt 0:00:00]} 98. Rb8+ {[%emt 0:00:03]} 1-0

[Event "Bangabandhu Premier Div League 2023-24"]
[Site "Dhaka"]
[Date "2024.02.11"]
[Round "11.5"]
[White "Nasim Hossain, Bhuiyan"]
[Black "Islam, M.M. Zahirul"]
[Result "0-1"]
[ECO "D05"]
[WhiteElo "1812"]
[BlackElo "1876"]
[Annotator "NA RC"]
[PlyCount "130"]
[EventDate "2024.02.01"]
[EventCountry "BAN"]
[SourceTitle "playchess.com"]
[Source "ChessBase"]
[SourceQuality "1"]
[TimeControl "40/5400+30:1800+30"]

1. d4 {[%emt 1:31:00]} d5 2. Nf3 Nf6 3. e3 c6 4. Bd3 e6 5. O-O Nbd7 6. b3 g6 7. Bb2 Bg7 8. Nbd2 {[%emt 0:00:00]} O-O {[%emt 0:03:37]} 9. Qe2 Re8 10. Ne5 {[%emt 0:00:00]} Nxe5 {[%emt 0:04:40]} 11. dxe5 {[%emt 0:00:00]} Nd7 {[%emt 0:00:09]} 12. f4 {[%emt 0:00:00]} b6 {[%emt 0:04:40]} 13. c4 {[%emt 0:00:00]} Ba6 {[%emt 0:02:14]} 14. Rac1 {[%emt 0:00:00]} Rc8 {[%emt 0:02:48]} 15. Rfd1 {[%emt 0:00:00]} Qe7 {[%emt 0:01:35]} 16. Nf3 {[%emt 0:00:00]} Red8 {[%emt 0:05:54]} 17. e4 {[%emt 0:00:00]} dxc4 {[%emt 0:07:30]} 18. Bxc4 {[%emt 0:00:00]} Bxc4 {[%emt 0:00:50]} 19. Qxc4 {[%emt 0:00:00]} Qc5+ {[%emt 0:01:28]} 20. Bd4 {[%emt 0:00:00]} Qxc4 {[%emt 0:01:48]} 21. bxc4 {[%emt 0:00:00]} c5 {[%emt 0:00:07]} 22. Bc3 {[%emt 0:00:00]} Nb8 {[%emt 0:00:07]} 23. Kf2 {[%emt 0:00:00]} Nc6 {[%emt 0:00:54]} 24. a3 {[%emt 0:00:00]} Rxd1 {[%emt 0:00:31]} 25. Rxd1 {[%emt 0:00:00]} Rd8 {[%emt 0:00:05]} 26. Ke2 {[%emt 0:00:00]} Rxd1 {[%emt 0:04:24]} 27. Kxd1 {[%emt 0:00:00]} h6 {[%emt 0:00:13]} 28. h4 {[%emt 0:00:00]} Kf8 {[%emt 0:00:48]} 29. g4 {[%emt 0:00:00]} a6 {[%emt 0:06:38]} 30. Kc2 {[%emt 0:00:00]} b5 {[%emt 0:00:15]} 31. Nd2 {[%emt 0:00:00]} Ke8 {[%emt 0:01:01]} 32. cxb5 {[%emt 0:00:00]} axb5 {[%emt 0:00:02]} 33. Nf3 {[%emt 0:00:00]} Bf8 {[%emt 0:07:52]} 34. f5 {[%emt 0:00:00]} Bg7 {[%emt 0:03:58]} 35. f6 {[%emt 0:00:00]} Bf8 {[%emt 0:00:13]} 36. Bd2 {[%emt 0:00:00]} Kd7 {[%emt 0:02:53]} 37. Kb2 {[%emt 0:00:00]} Nb8 {[%emt 0:08:31]} 38. h5 {[%emt 0:00:00]} gxh5 {[%emt 0:04:20]} 39. gxh5 {[%emt 0:00:00]} Nc6 {[%emt 0:01:17]} 40. Bf4 {[%emt 0:00:00]} Na5 {[%emt 0:01:44]} 41. Nh2 {[%emt 0:21:28]} Ke8 {[%emt 0:31:34]} 42. Ng4 {[%emt 0:02:25]} Nc6 {[%emt 0:02:45]} 43. Kc3 {[%emt 0:03:46]} b4+ {[%emt 0:02:07]} 44. axb4 {[%emt 0:00:36]} cxb4+ {[%emt 0:00:14]} 45. Kc2 {[%emt 0:01:11]} Nd4+ {[%emt 0:23:14]} 46. Kb2 {[%emt 0:01:06]} Ne2 {[%emt 0:00:00]} 47. Bh2 {[%emt 0:05:05]} Nd4 {[%emt 0:01:00]} 48. Ne3 {[%emt 0:02:06]} Ne2 {[%emt 0:00:00]} 49. Kc2 {[%emt 0:08:00]} Bc5 {[%emt 0:00:00]} 50. Ng4 {[%emt 0:00:49]} Bf8 {[%emt 0:00:00]} 51. Kb2 {[%emt 0:07:21]} Kd7 {[%emt 0:00:00]} 52. Ne3 {[%emt 0:00:25]} Nc3 {[%emt 0:00:00]} 53. Ng4 {[%emt 0:00:00]} Ne2 {[%emt 0:00:00]} 54. Nf2 {[%emt 0:00:00]} Kc6 {[%emt 0:00:00]} 55. Nd3 {[%emt 0:00:00]} Kb5 {[%emt 0:00:00]} 56. Kb3 {[%emt 0:00:00]} Nd4+ {[%emt 0:00:00]} 57. Kb2 {[%emt 0:00:00]} Kc4 {[%emt 0:00:00]} 58. Nf4 {[%emt 0:00:00]} Nf3 {[%emt 0:00:00]} 59. Ng6 {[%emt 0:00:00]} Bc5 {[%emt 0:00:00]} 60. Bf4 {[%emt 0:00:00]} Bd4+ {[%emt 0:00:00]} 61. Kb1 {[%emt 0:00:00]} b3 {[%emt 0:00:00]} 62. Bxh6 {[%emt 0:00:00]} b2 {[%emt 0:00:00]} 63. Bf4 {[%emt 0:00:00]} Kb3 {[%emt 0:00:00]} 64. h6 {[%emt 0:00:00]} Ne1 {[%emt 0:00:00]} 65. Bc1 {[%emt 0:06:20]} Nc2 {[%emt 0:00:00]} 0-1

[Event "Bangabandhu Premier Div League 2023-24"]
[Site "Dhaka"]
[Date "2024.02.11"]
[Round "11.6"]
[White "Chigaev, Maksim"]
[Black "Ankit Ray"]
[Result "1-0"]
[ECO "B40"]
[WhiteElo "2622"]
[BlackElo "1912"]
[Annotator "TA"]
[PlyCount "81"]
[EventDate "2024.02.01"]
[EventCountry "BAN"]
[SourceTitle "playchess.com"]
[Source "ChessBase"]
[SourceQuality "1"]
[TimeControl "40/5400+30:1800+30"]

{[%evp 9,81,18,18,19,24,14,44,3,25,29,60,29,37,36,53,57,66,68,75,68,61,86,69,72,47,43,39,53,111,115,120,123,115,128,103,118,162,143,159,153,125,139,195,197,197,190,271,265,287,278,298,285,399,358,477,444,501,495,464,439,849,839,629,577,775,593,1284,1272,1183,1058,1271,1201,1156,1093]} 1. e4 {[%emt 0:00:04]} c5 {[%emt 0:08:00]} 2. Nf3 {[%emt 0:00:30]} e6 {[%emt 0:00:30]} 3. g3 {[%emt 0:00:30]} d5 {[%emt 0:00:30]} 4. exd5 {[%emt 0:00:30]} exd5 {[%emt 0:00:30]} 5. d4 {[%emt 0:00:30]} Nc6 {[%emt 0:00:30]} 6. Bg2 {[%emt 0:00:30]} Bg4 {[%emt 0:00:30]} 7. O-O {[%emt 0:00:15]} Nf6 {[%emt 0:07:00]} 8. Qd3 {[%emt 0:22:04] White is slightly better.} Bxf3 {[%emt 0:08:18]} 9. Bxf3 {[%emt 0:03:39]} Nxd4 {[%emt 1:09:12]} 10. Bg2 {[%emt 1:06:58]} Be7 {[%emt 0:00:30]} 11. Nc3 {[%emt 0:00:30]} O-O {[%emt 0:00:00]} 12. Bg5 {[%emt 0:00:30]} Nc6 {[%emt 0:00:00]} 13. Bxf6 {[%emt 0:00:00]} Bxf6 {[%emt 0:00:00]} 14. Nxd5 {[%emt 0:00:00]} Nb4 {[%emt 0:00:00]} 15. Nxf6+ $1 {[%emt 0:00:00]} Qxf6 {[%emt 0:00:00]} 16. Qb3 {[%emt 0:02:00][%cal Oa2a3]} Rab8 {[%emt 0:03:00]} 17. Rad1 {[%emt 0:00:30]} Nc6 {[%emt 0:00:00]} 18. c3 {[%emt 0:00:30]} Qe7 {[%emt 0:01:00]} (18... Ne5 $14) 19. Rfe1 $16 {[%emt 0:00:00]} Qc7 {[%emt 0:00:00] Black is weak on the light squares} 20. Qb5 {[%emt 0:00:00]} Qb6 {[%emt 0:00:00]} 21. Qxb6 {[%emt 0:00:00]} axb6 {[%emt 0:00:00]} 22. Rd7 {[%emt 0:00:00]} g6 {[%emt 0:00:00]} 23. Kf1 {[%emt 0:00:00]} Rfd8 {[%emt 0:00:00]} 24. Red1 {[%emt 0:00:00] [#] Strongly threatening Bxc6. White has more active pieces.} Rxd7 {[%emt 0:00:00]} 25. Rxd7 {[%emt 0:00:00]} Ne5 {[%emt 0:03:30]} (25... Kf8 $16 26. Bxc6 bxc6) 26. Rxb7 $18 {[%emt 0:00:00]} Rxb7 {[%emt 0:00:00]} 27. Bxb7 {[%emt 0:00:00][%mdl 4096] Endgame. KB-KN} Nd3 {[%emt 0:00:00]} (27... Kf8 {was necessary.} 28. b4 cxb4) 28. Ke2 {[%emt 0:00:00]} (28. b3 Nc1 $16) 28... Nxb2 {[%emt 0:00:00]} 29. Ba6 {[%emt 0:05:30] Against Nc4. Hoping for c4.} c4 {[%emt 0:00:00]} 30. f4 {[%emt 0:00:00]} h6 {[%emt 0:00:00][%cal Bh7h6,Bh6g5][%mdl 32]} 31. Ke3 {[%emt 0:00:00]} g5 {[%emt 0:00:00]} 32. fxg5 {[%emt 0:00:00] White is clearly winning.} (32. Kd4 Kf8 33. Bxc4 (33. fxg5 hxg5 34. Bxc4 Nd1 $18) 33... gxf4 34. gxf4 h5) 32... hxg5 {[%emt 0:00:00]} 33. Kd4 {[%emt 0:00:00]} Kg7 {[%emt 0:00:00]} 34. g4 {[%emt 0:00:00]} ({Don't take} 34. Bxc4 f5 35. Bb3 Kf6 $18) 34... Na4 {[%emt 0:00:00]} (34... Nd1 $142 35. Bxc4 Kf6) 35. Bxc4 {[%emt 0:00:00]} Nc5 {[%emt 0:00:00]} 36. Bd5 {[%emt 0:00:00]} Kg6 {[%emt 0:00:00]} 37. Bb3 {[%emt 0:04:00] [#] Kd5 is the strong threat.} Kf6 {[%emt 0:00:00]} 38. Kd5 {[%emt 0:00:00]} Ke7 {[%emt 0:00:00]} 39. Kc6 {[%emt 0:00:00]} Nd7 {[%emt 0:00:00]} 40. h3 {[%emt 0:00:00]} f6 {[%emt 0:00:00]} 41. Kc7 {[%emt 0:10:54] Weighted Error Value: White=0.05 (flawless) /Black=0.26 (precise) .  Mistake:       	---       	Black=4      Inaccurate:     	White=2     	Black=6      OK:         	White=18    	Black=9      Best:        	White=3     	---        Strong:       	White=1     	---} 1-0